{"text_format":"1","workbook":"xlsx","n_sheets":2,"sheets":["Табель","Тех"],"not_rendered":{"charts":0,"images":0,"macros":1,"external_links":0,"defined_names":2,"comments":0,"pivot_tables":0},"unopened":[],"bounds":{"document_bytes":16777216,"sheet_cells":100000,"rows_first":2000,"rows_last":500,"rows_between":2000,"halvings":0,"cell_chars":16384,"cell_head_chars":4096},"cells_cut":0,"cells_raw":0,"read":"whole","date_system":"1900"}

{"sheet":"Табель","index":0,"n_rows":46,"n_cols":40,"rows_kept":46,"cut":false,"hidden":false,"merged":[[44,14,44,24],[45,4,45,10],[45,14,45,24],[41,4,41,10],[41,14,41,24],[42,14,42,24],[43,4,43,10],[43,14,43,24],[8,34,9,34],[8,35,9,35],[8,36,9,36],[8,37,9,37],[40,14,40,24],[8,28,9,28],[8,29,9,29],[8,30,9,30],[8,31,9,31],[8,32,9,32],[8,33,9,33],[7,38,9,38],[7,39,9,39],[8,5,9,5],[8,6,9,6],[8,7,9,7],[8,8,9,8],[8,9,9,9],[8,10,9,10],[8,11,9,11],[8,12,9,12],[8,13,9,13],[8,14,9,14],[8,15,9,15],[8,16,9,16],[8,17,9,17],[8,18,9,18],[6,4,6,36],[7,1,9,1],[7,2,9,2],[7,3,9,3],[7,4,9,4],[7,5,7,35],[7,36,7,37],[8,19,9,19],[8,20,9,20],[8,21,9,21],[8,22,9,22],[8,23,9,23],[8,24,9,24],[8,25,9,25],[8,26,9,26],[8,27,9,27],[5,4,5,36],[4,4,4,36],[0,5,0,35],[1,5,1,35],[2,5,2,35],[3,3,3,36]]}
[null,null,null,null,null,"Т А Б Е Л Ь",null,null,null,null,null,null,null,null,null,null,null,null,null,null,null,null,null,null,null,null,null,null,null,null,null,null,null,null,null,null,null,null,null,"КОДЫ"]
[null,null,null,null,null,"УЧЕТА ПОСЕЩАЕМОСТИ ДЕТЕЙ",null,null,null,null,null,null,null,null,null,null,null,null,null,null,null,null,null,null,null,null,null,null,null,null,null,null,null,null,null,null,null,null,"Форма по ОКУД  ",504608]
[null,null,null,null,null,"за ноябрь 2021 г.",null,null,null,null,null,null,null,null,null,null,null,null,null,null,null,null,null,null,null,null,null,null,null,null,null,null,null,null,null,null,null,null,"Дата  "]
[null,null,"Учреждение","МБОУ \"СОШ пгт Южно-Курильск\"",null,null,null,null,null,null,null,null,null,null,null,null,null,null,null,null,null,null,null,null,null,null,null,null,null,null,null,null,null,null,null,null,null,null,"по ОКПО  ",7789261]
[null,null,"Структурное подразделение",null,"6 В класс"]
[null,null,"Вид расчета"]
[null,null,"Режим работы",null,{"$f":"AM12+AK12","v":17}]
[null,"№№\nп/п","Фамилия, имя\nребенка","Номер\nсчета","Плата\nпо став-\nке","Дни посещения",null,null,null,null,null,null,null,null,null,null,null,null,null,null,null,null,null,null,null,null,null,null,null,null,null,null,null,null,null,null,"Пропущено дней",null,"Дни\nпосеще-\nния, под-\nлежащие\nоплате","Причины\nнепосещения\n(основание)"]
[null,null,null,null,null,{"$f":"DATE(LEFTB(RIGHTB(F3,7),4),SEARCH(MID(F3,5,2),\"ёнвеварпрайюнюлвгенктояек\")/2,1)","v":"2021-11-01"},{"$f":"F9+1","v":"2021-11-02"},{"$f":"G9+1","v":"2021-11-03"},"2021-11-04","2021-11-05","2021-11-06","2021-11-07","2021-11-08","2021-11-09","2021-11-10","2021-11-11","2021-11-12","2021-11-13","2021-11-14","2021-11-15","2021-11-16","2021-11-17","2021-11-18","2021-11-19","2021-11-20","2021-11-21","2021-11-22","2021-11-23","2021-11-24","2021-11-25","2021-11-26","2021-11-27","2021-11-28",{"$f":"IF((AG9+1)>$C11,\"\",AG9+1)","v":"2021-11-29"},{"$f":"IF((AH9+1)>$C11,\"\",AH9+1)","v":"2021-11-30"},"","всего","в том \nчисле\nзасчи-\nтыва-\nемых"]
[]
[null,null,{"$f":"EOMONTH(DATE(LEFTB(RIGHTB(F3,7),4),SEARCH(MID(F3,5,2),\"ёнвеварпрайюнюлвгенктояек\")/2,1),0)","v":"2021-11-30"},null,null,{"$f":"IF(F9<>\"\",IF(ISNUMBER(MATCH(F9,Тех!$C:$C,)),1,IF(OR(ISNUMBER(MATCH(F9,Тех!$A:$A,)),ISNUMBER(MATCH(F9,Тех!$B:$B,)),WEEKDAY(F9,2)>5),0,1)),\"\")","v":0},{"$f":"IF(G9<>\"\",IF(ISNUMBER(MATCH(G9,Тех!$C:$C,)),1,IF(OR(ISNUMBER(MATCH(G9,Тех!$A:$A,)),ISNUMBER(MATCH(G9,Тех!$B:$B,)),WEEKDAY(G9,2)>5),0,1)),\"\")","v":0},{"$f":"IF(H9<>\"\",IF(ISNUMBER(MATCH(H9,Тех!$C:$C,)),1,IF(OR(ISNUMBER(MATCH(H9,Тех!$A:$A,)),ISNUMBER(MATCH(H9,Тех!$B:$B,)),WEEKDAY(H9,2)>5),0,1)),\"\")","v":0},{"$f":"IF(I9<>\"\",IF(ISNUMBER(MATCH(I9,Тех!$C:$C,)),1,IF(OR(ISNUMBER(MATCH(I9,Тех!$A:$A,)),ISNUMBER(MATCH(I9,Тех!$B:$B,)),WEEKDAY(I9,2)>5),0,1)),\"\")","v":0},{"$f":"IF(J9<>\"\",IF(ISNUMBER(MATCH(J9,Тех!$C:$C,)),1,IF(OR(ISNUMBER(MATCH(J9,Тех!$A:$A,)),ISNUMBER(MATCH(J9,Тех!$B:$B,)),WEEKDAY(J9,2)>5),0,1)),\"\")","v":0},{"$f":"IF(K9<>\"\",IF(ISNUMBER(MATCH(K9,Тех!$C:$C,)),1,IF(OR(ISNUMBER(MATCH(K9,Тех!$A:$A,)),ISNUMBER(MATCH(K9,Тех!$B:$B,)),WEEKDAY(K9,2)>5),0,1)),\"\")","v":0},{"$f":"IF(L9<>\"\",IF(ISNUMBER(MATCH(L9,Тех!$C:$C,)),1,IF(OR(ISNUMBER(MATCH(L9,Тех!$A:$A,)),ISNUMBER(MATCH(L9,Тех!$B:$B,)),WEEKDAY(L9,2)>5),0,1)),\"\")","v":0},{"$f":"IF(M9<>\"\",IF(ISNUMBER(MATCH(M9,Тех!$C:$C,)),1,IF(OR(ISNUMBER(MATCH(M9,Тех!$A:$A,)),ISNUMBER(MATCH(M9,Тех!$B:$B,)),WEEKDAY(M9,2)>5),0,1)),\"\")","v":1},{"$f":"IF(N9<>\"\",IF(ISNUMBER(MATCH(N9,Тех!$C:$C,)),1,IF(OR(ISNUMBER(MATCH(N9,Тех!$A:$A,)),ISNUMBER(MATCH(N9,Тех!$B:$B,)),WEEKDAY(N9,2)>5),0,1)),\"\")","v":1},{"$f":"IF(O9<>\"\",IF(ISNUMBER(MATCH(O9,Тех!$C:$C,)),1,IF(OR(ISNUMBER(MATCH(O9,Тех!$A:$A,)),ISNUMBER(MATCH(O9,Тех!$B:$B,)),WEEKDAY(O9,2)>5),0,1)),\"\")","v":1},{"$f":"IF(P9<>\"\",IF(ISNUMBER(MATCH(P9,Тех!$C:$C,)),1,IF(OR(ISNUMBER(MATCH(P9,Тех!$A:$A,)),ISNUMBER(MATCH(P9,Тех!$B:$B,)),WEEKDAY(P9,2)>5),0,1)),\"\")","v":1},{"$f":"IF(Q9<>\"\",IF(ISNUMBER(MATCH(Q9,Тех!$C:$C,)),1,IF(OR(ISNUMBER(MATCH(Q9,Тех!$A:$A,)),ISNUMBER(MATCH(Q9,Тех!$B:$B,)),WEEKDAY(Q9,2)>5),0,1)),\"\")","v":1},{"$f":"IF(R9<>\"\",IF(ISNUMBER(MATCH(R9,Тех!$C:$C,)),1,IF(OR(ISNUMBER(MATCH(R9,Тех!$A:$A,)),ISNUMBER(MATCH(R9,Тех!$B:$B,)),WEEKDAY(R9,2)>5),0,1)),\"\")","v":0},{"$f":"IF(S9<>\"\",IF(ISNUMBER(MATCH(S9,Тех!$C:$C,)),1,IF(OR(ISNUMBER(MATCH(S9,Тех!$A:$A,)),ISNUMBER(MATCH(S9,Тех!$B:$B,)),WEEKDAY(S9,2)>5),0,1)),\"\")","v":0},{"$f":"IF(T9<>\"\",IF(ISNUMBER(MATCH(T9,Тех!$C:$C,)),1,IF(OR(ISNUMBER(MATCH(T9,Тех!$A:$A,)),ISNUMBER(MATCH(T9,Тех!$B:$B,)),WEEKDAY(T9,2)>5),0,1)),\"\")","v":1},{"$f":"IF(U9<>\"\",IF(ISNUMBER(MATCH(U9,Тех!$C:$C,)),1,IF(OR(ISNUMBER(MATCH(U9,Тех!$A:$A,)),ISNUMBER(MATCH(U9,Тех!$B:$B,)),WEEKDAY(U9,2)>5),0,1)),\"\")","v":1},{"$f":"IF(V9<>\"\",IF(ISNUMBER(MATCH(V9,Тех!$C:$C,)),1,IF(OR(ISNUMBER(MATCH(V9,Тех!$A:$A,)),ISNUMBER(MATCH(V9,Тех!$B:$B,)),WEEKDAY(V9,2)>5),0,1)),\"\")","v":1},{"$f":"IF(W9<>\"\",IF(ISNUMBER(MATCH(W9,Тех!$C:$C,)),1,IF(OR(ISNUMBER(MATCH(W9,Тех!$A:$A,)),ISNUMBER(MATCH(W9,Тех!$B:$B,)),WEEKDAY(W9,2)>5),0,1)),\"\")","v":1},{"$f":"IF(X9<>\"\",IF(ISNUMBER(MATCH(X9,Тех!$C:$C,)),1,IF(OR(ISNUMBER(MATCH(X9,Тех!$A:$A,)),ISNUMBER(MATCH(X9,Тех!$B:$B,)),WEEKDAY(X9,2)>5),0,1)),\"\")","v":1},{"$f":"IF(Y9<>\"\",IF(ISNUMBER(MATCH(Y9,Тех!$C:$C,)),1,IF(OR(ISNUMBER(MATCH(Y9,Тех!$A:$A,)),ISNUMBER(MATCH(Y9,Тех!$B:$B,)),WEEKDAY(Y9,2)>5),0,1)),\"\")","v":0},{"$f":"IF(Z9<>\"\",IF(ISNUMBER(MATCH(Z9,Тех!$C:$C,)),1,IF(OR(ISNUMBER(MATCH(Z9,Тех!$A:$A,)),ISNUMBER(MATCH(Z9,Тех!$B:$B,)),WEEKDAY(Z9,2)>5),0,1)),\"\")","v":0},{"$f":"IF(AA9<>\"\",IF(ISNUMBER(MATCH(AA9,Тех!$C:$C,)),1,IF(OR(ISNUMBER(MATCH(AA9,Тех!$A:$A,)),ISNUMBER(MATCH(AA9,Тех!$B:$B,)),WEEKDAY(AA9,2)>5),0,1)),\"\")","v":1},{"$f":"IF(AB9<>\"\",IF(ISNUMBER(MATCH(AB9,Тех!$C:$C,)),1,IF(OR(ISNUMBER(MATCH(AB9,Тех!$A:$A,)),ISNUMBER(MATCH(AB9,Тех!$B:$B,)),WEEKDAY(AB9,2)>5),0,1)),\"\")","v":1},{"$f":"IF(AC9<>\"\",IF(ISNUMBER(MATCH(AC9,Тех!$C:$C,)),1,IF(OR(ISNUMBER(MATCH(AC9,Тех!$A:$A,)),ISNUMBER(MATCH(AC9,Тех!$B:$B,)),WEEKDAY(AC9,2)>5),0,1)),\"\")","v":1},{"$f":"IF(AD9<>\"\",IF(ISNUMBER(MATCH(AD9,Тех!$C:$C,)),1,IF(OR(ISNUMBER(MATCH(AD9,Тех!$A:$A,)),ISNUMBER(MATCH(AD9,Тех!$B:$B,)),WEEKDAY(AD9,2)>5),0,1)),\"\")","v":1},{"$f":"IF(AE9<>\"\",IF(ISNUMBER(MATCH(AE9,Тех!$C:$C,)),1,IF(OR(ISNUMBER(MATCH(AE9,Тех!$A:$A,)),ISNUMBER(MATCH(AE9,Тех!$B:$B,)),WEEKDAY(AE9,2)>5),0,1)),\"\")","v":1},{"$f":"IF(AF9<>\"\",IF(ISNUMBER(MATCH(AF9,Тех!$C:$C,)),1,IF(OR(ISNUMBER(MATCH(AF9,Тех!$A:$A,)),ISNUMBER(MATCH(AF9,Тех!$B:$B,)),WEEKDAY(AF9,2)>5),0,1)),\"\")","v":0},{"$f":"IF(AG9<>\"\",IF(ISNUMBER(MATCH(AG9,Тех!$C:$C,)),1,IF(OR(ISNUMBER(MATCH(AG9,Тех!$A:$A,)),ISNUMBER(MATCH(AG9,Тех!$B:$B,)),WEEKDAY(AG9,2)>5),0,1)),\"\")","v":0},{"$f":"IF(AH9<>\"\",IF(ISNUMBER(MATCH(AH9,Тех!$C:$C,)),1,IF(OR(ISNUMBER(MATCH(AH9,Тех!$A:$A,)),ISNUMBER(MATCH(AH9,Тех!$B:$B,)),WEEKDAY(AH9,2)>5),0,1)),\"\")","v":1},{"$f":"IF(AI9<>\"\",IF(ISNUMBER(MATCH(AI9,Тех!$C:$C,)),1,IF(OR(ISNUMBER(MATCH(AI9,Тех!$A:$A,)),ISNUMBER(MATCH(AI9,Тех!$B:$B,)),WEEKDAY(AI9,2)>5),0,1)),\"\")","v":1},{"$f":"IF(AJ9<>\"\",IF(ISNUMBER(MATCH(AJ9,Тех!$C:$C,)),1,IF(OR(ISNUMBER(MATCH(AJ9,Тех!$A:$A,)),ISNUMBER(MATCH(AJ9,Тех!$B:$B,)),WEEKDAY(AJ9,2)>5),0,1)),\"\")","v":""}]
[null,1,"Борисенко К.",null,null,null,null,null,null,null,null,null,null,null,"н",null,null,null,null,null,null,null,null,null,null,null,null,null,null,null,null,null,null,"н",null,null,{"$f":"COUNTIF(F12:AI12,\"н\")","v":2},null,{"$f":"COUNTIFS(F$11:AJ$11,1,F12:AJ12,\"\")","v":15}]
[null,2,"Горюнова С.",null,null,null,null,null,null,null,null,null,null,null,"н",null,null,null,null,null,null,null,null,null,null,null,null,null,null,"н","н",null,null,null,"н",null,{"$f":"COUNTIF(F13:AI13,\"?\")","v":4},null,{"$f":"COUNTIFS(F$11:AJ$11,1,F13:AJ13,\"\")","v":13}]
[null,3,"Карпов А.",null,null,null,null,null,null,null,null,null,null,null,"н","н","н",null,null,"н","н",null,null,null,null,null,null,null,null,"н","н",null,null,null,null,null,7,null,{"$f":"COUNTIFS(F$11:AJ$11,1,F14:AJ14,\"\")","v":10}]
[null,4,"Куйдин Э.",null,null,null,null,null,null,null,null,null,null,null,"н",null,null,null,null,null,null,null,null,null,null,null,"н","н","н","н","н",null,null,null,null,null,6,null,11]
[null,5,"Съедин М.",null,null,null,null,null,null,null,null,null,null,null,"н",null,null,null,null,"н","н","н","н","н",null,null,"н","н",null,null,null,null,null,null,null,null,8,null,9]
[null,6,"Чымба С.",null,null,null,null,null,null,null,null,null,null,null,"н",null,null,null,null,null,null,null,null,null,null,null,null,null,null,null,null,null,null,null,null,null,1,null,16]
[null,7,"Шекихачева В.",null,null,null,null,null,null,null,null,null,null,null,"н",null,null,null,null,"н",null,null,null,null,null,null,"н",null,null,null,"н",null,null,null,"н",null,5,null,12]
[null,8,"Швец К.",null,null,null,null,null,null,null,null,null,null,null,"н",null,null,null,null,null,null,null,null,null,null,null,null,null,null,null,null,null,null,null,null,null,1,null,16]
[null,9,"Кустулиди Д.",null,null,null,null,null,null,null,null,null,null,null,"н",null,null,null,null,null,null,null,null,"н",null,null,null,null,null,null,null,null,null,null,"н",null,3,null,14]
[null,10,"Костыгова Д.",null,null,null,null,null,null,null,null,null,null,null,"н",null,null,null,null,null,null,null,null,null,null,null,"н",null,null,null,null,null,null,null,null,null,2,null,15]
[null,11,"Доржиев А.",null,null,null,null,null,null,null,null,null,null,null,"н",null,null,null,null,null,null,null,null,null,null,null,null,null,null,null,null,null,null,null,null,null,1,null,16]
[null,12,"Григорьев Д.",null,null,null,null,null,null,null,null,null,null,null,"н",null,null,null,null,null,null,null,null,null,null,null,null,null,null,null,null,null,null,null,null,null,1,null,16]
[null,13,"Нурова И.",null,null,null,null,null,null,null,null,null,null,null,"н",null,null,null,null,null,null,null,"н","н",null,null,"н","н",null,"н",null,null,null,null,null,null,6,null,11]
[null,14,"Сапегина Е.","опека",null,null,null,null,null,null,null,null,null,null,"н"]
[null,15,"Степанова О.","опека",null,null,null,null,null,null,null,null,null,null,"н"]
[null,16,"Гордеев А.","малоимущие ",null,null,null,null,null,null,null,null,null,null,"н",null,null,null,null,null,null,null,null,null,null,null,null,"н",null,null,"н"]
[null,17,"Золотарева Е.","малоимущие ",null,null,null,null,null,null,null,null,null,null,"н"]
[null,18,"Лискова С.","многодетные ",null,null,null,null,null,null,null,null,null,null,"н",null,null,null,null,null,null,null,null,null,null,null,null,null,"н"]
[null,19,"Толстоброва Н.","многодетные ",null,null,null,null,null,null,null,null,null,null,"н",null,null,null,null,null,null,null,null,"н"]
[null,20,"Коптев С.","многодетные ",null,null,null,null,null,null,null,null,null,null,"н"]
[null,21,"Гуленко К.","многодетные ",null,null,null,null,null,null,null,null,null,"н","н","н","н",null,null,"н","н"]
[null,22,"Злыгостева А.","многодетные ",null,null,null,null,null,null,null,null,null,null,"н"]
[null,23,"Бусыгина А.","многодетные ",null,null,null,null,null,null,null,null,"н",null,"н",null,null,null,null,"н","н","н","н","н",null,null,"н","н","н","н","н",null,null,"н","н"]
[null,24,"Галимова С.","многодетные ",null,null,null,null,null,null,null,null,null,null,"н"]
["н",25,"Астраханцева А.","многодетные ",null,null,null,null,null,null,null,null,null,null,"н",null,"н",null,null,null,null,null,"н","н",null,null,"н","н"]
[null,26,"Лебедев Д.","многодетные ",null,null,null,null,null,null,null,null,null,null,"н",null,null,null,null,null,null,null,null,"н"]
[null,27,"Чучуев Д. ","многодетные ",null,null,null,null,null,null,null,null,null,null,"н",null,null,null,null,null,"н",null,null,null,null,null,null,"н","н","н","н"]
[null,28,"Галиуллин Р. ","многодетные ",null,null,null,null,null,null,null,null,null,null,"н"]
[null,null,null,null,null,{"$f":"COUNTBLANK(F12:F24)","v":13},{"$f":"COUNTBLANK(G12:G24)","v":13},13,13,13,13,13,13,13,0,12,12,13,13,10,11,12,11,10,13,13,8,10,12,9,9,13,13,12,10,13,{"$f":"SUM(AK12:AK39)","v":47},null,{"$f":"SUM(AM12:AM39)","v":174}]
[null,null," Директор МБОУ",null,null,null,null,null,null,null,null,null,null,null,"Т.В. Павлюкевич"]
[null,null,"\"СОШ пгт.Южно-Курильск\"",null,"(подпись)",null,null,null,null,null,null,null,null,null,"(расшифрока подписи)"]
[null,null,"Организатор питания",null,null,null,null,null,null,null,null,null,null,null,"Н. П. Третьякова"]
[null,null,null,null,"(подпись)",null,null,null,null,null,null,null,null,null,"(расшифрока подписи)"]
[null,null,"Классный руководитель",null,null,null,null,null,null,null,null,null,null,null,"Ю. А. Салдина"]
[null,null,null,null,"(подпись)",null,null,null,null,null,null,null,null,null,"(расшифрока подписи)"]

{"sheet":"Тех","index":1,"n_rows":74,"n_cols":5,"rows_kept":74,"cut":false,"hidden":false,"merged":[]}
["праздники","доп.нерабочие","раб.перенесен.","Период","Вид"]
["2021-11-04","2021-11-01",null,"за ноябрь 2021 г.","бюджет"]
["2021-11-05","2021-11-02",null,"за декабрь 2021 г.","внебюджет"]
["2021-11-06","2021-11-03",null,"за январь 2022 г."]
["2021-11-07","2021-12-29",null,"за февраль 2022 г."]
["2021-11-13","2021-12-30",null,"за март 2022 г."]
["2021-11-14","2022-03-21",null,"за апрель 2022 г."]
["2021-11-20","2022-03-22",null,"за май 2022 г."]
["2021-11-21","2022-03-23",null,"за июнь 2022 г."]
["2021-11-27","2022-03-24",null,"за июль 2022 г."]
["2021-11-28","2022-03-25",null,"за август 2022 г."]
["2021-12-04","2022-05-27",null,"за сентябрь 2022 г."]
["2021-12-05","2022-05-30",null,"за октябрь 2022 г."]
["2021-12-11","2022-05-31",null,"за ноябрь 2022 г."]
["2021-12-12",null,null,"за декабрь 2022 г."]
["2021-12-18"]
["2021-12-19"]
["2021-12-25"]
["2021-12-26"]
["2021-12-31"]
["2022-01-01"]
["2022-01-02"]
["2022-01-03"]
["2022-01-04"]
["2022-01-05"]
["2022-01-06"]
["2022-01-07"]
["2022-01-08"]
["2022-01-09"]
["2022-01-15"]
["2022-01-16"]
["2022-01-22"]
["2022-01-23"]
["2022-01-29"]
["2022-01-30"]
["2022-02-05"]
["2022-02-06"]
["2022-02-12"]
["2022-02-13"]
["2022-02-19"]
["2022-02-20"]
["2022-02-23"]
["2022-02-26"]
["2022-02-27"]
["2022-03-05"]
["2022-03-06"]
["2022-03-07"]
["2022-03-08"]
["2022-03-12"]
["2022-03-13"]
["2022-03-19"]
["2022-03-20"]
["2022-03-26"]
["2022-03-27"]
["2022-04-02"]
["2022-04-03"]
["2022-04-09"]
["2022-04-10"]
["2022-04-16"]
["2022-04-17"]
["2022-04-23"]
["2022-04-24"]
["2022-04-30"]
["2022-05-01"]
["2022-05-02"]
["2022-05-03"]
["2022-05-07"]
["2022-05-08"]
["2022-05-09"]
["2022-05-10"]
["2022-05-14"]
["2022-05-15"]
["2022-05-28"]
["2022-05-29"]